Cogmind - Beta 13 @@@ ROGUE MODE // 2024.04.30 @ 19:24:25 Player: satan5 Result: Destroyed by KK-UVZ(R) with Subdweller Beam Cannon Performance ------------- Evolutions (0) 0 Regions Visited (2) 400 Robots Destroyed (27) 135 Value Destroyed (550) 550 Prototype IDs (14) 280 Alien Tech Used (0) 0 Bonus (-66) -66 TOTAL SCORE: 1299 Bonus ------- Friendly Fire -66 Cogmind --------- Core Integrity 0/250 Matter 137/300 Energy 178/250 System Corruption 3% Temperature Cool (87) Movement Walking (190) Ox1 Location -10/Subcaves Parts ------- > --- POWER (1) -------- Ion Engine > --- PROPULSION (2) --- Improved Aluminum Leg Improved Aluminum Leg > --- UTILITY (2) ------ Large Storage Unit Improved Terrain Scanner > --- WEAPON (2) ------- Subdweller Beam Cannon Subdweller Beam Cannon > --- INVENTORY (15) --- Ion Engine Improved Aluminum Leg Improved Aluminum Leg Improved Heat Sink High-capacity Storage Unit Signal Interpreter Gun Armor Hacking Suite Battle Cannon Battle Cannon Rocket Launcher Rocket Launcher Makeshift Hammer Peak State ------------ > --- POWER ------------ Ion Engine > --- PROPULSION ------- Improved Aluminum Leg Improved Aluminum Leg > --- UTILITY ---------- Large Storage Unit Improved Terrain Scanner > --- WEAPON ----------- Subdweller Beam Cannon Subdweller Beam Cannon > --- INVENTORY -------- Ion Engine Improved Aluminum Leg Improved Aluminum Leg Improved Heat Sink High-capacity Storage Unit Signal Interpreter Gun Armor Hacking Suite Battle Cannon Battle Cannon Rocket Launcher Rocket Launcher Makeshift Hammer [Rating: 16] Favorites ----------- Power Ion Engine Engine Ion Engine Propulsion Armored Wheel Leg Aluminum Leg Wheel Armored Wheel Utility Large Storage Unit Device Structural Scanner Storage Large Storage Unit Protection Utility Shielding Weapon Beam Cannon Energy Gun Medium Laser Energy Cannon Beam Cannon Ballistic Cannon Battle Cannon Launcher Rocket Launcher Slashing Weapon Mining Claw Build | -11 -10 -10 ------- Run | Yrd Mat Sub Slots Evolved . | . . . Power . | . . . Propulsion . | . . . Utility . | . . . Weapon . | . . . Parts Attached 36 | 6 10 20 Power 2 | 1 . 1 Engine 2 | 1 . 1 Core . | . . . Reactor . | . . . Propulsion 6 | 2 2 2 Treads . | . . . Leg 4 | 2 . 2 Wheel 2 | . 2 . Hover . | . . . Flight . | . . . Utility 8 | 1 3 4 Device 5 | . 1 4 Storage 2 | 1 1 . Processor . | . . . Hackware . | . . . Protection 1 | . 1 . Artifact . | . . . Weapon 20 | 2 5 13 Energy Gun 2 | 2 . . Energy Cannon 10 | . 3 7 Ballistic Gun . | . . . Ballistic Cannon 1 | . . 1 Launcher 5 | . 1 4 Special Weapon . | . . . Impact Weapon . | . . . Slashing Weapon 2 | . 1 1 Piercing Weapon . | . . . Special Melee Weapon . | . . . Unidentified Prototypes . | . . . Parts Lost 1 | . . 1 Power . | . . . Propulsion . | . . . Utility 1 | . . 1 Weapon . | . . . Highest Loss Streak 1 | . . 1 To Critical Strikes . | . . . Average Slot Usage (%) 95 | . 96 93 Engine 14 | . 14 14 Leg 11 | . 16 5 Wheel 16 | . 11 22 Device 8 | . 8 8 Storage 14 | . 14 14 Protection 1 | . 3 . Energy Gun 1 | . 2 . Energy Cannon 17 | . 25 8 Ballistic Cannon 2 | . . 5 Launcher 3 | . . 8 Slashing Weapon 2 | . . 4 Naked Turns . | . . . Heaviest Build 43 | 14 32 43 Greatest Support 26 | 20 24 26 Greatest Overweight (x) 2 | . 2 1 Average Overweight (x) . | . . 1 Largest Inventory Capacity 15 | 8 15 15 Average Capacity 12 | 7 11 15 Most Carried 15 | 5 15 15 Average Carried 11 | 2 10 14 Final Capacity 15 | 8 15 15 Final Carried 15 | 4 15 13 Class Distribution -------------------- 100% | Mutant Dominant Class ---------------- Mutant | -10/Materials Mutant | -10/Subcaves Resources | -11 -10 -10 ----------- Run | Yrd Mat Sub Matter Collected 766 | 260 150 356 Remotely . | . . . Salvage Created 668 | 68 432 168 Parts 46 | 7 34 5 Haulers Intercepted 2 | . 2 . Recyclers Shooed 2 | . 2 . Parts Field Recycled . | . . . Retrieved Matter . | . . . Parts Self-Destructed 1 | . . 1 Prevented . | . . . Kills | -11 -10 -10 ------- Run | Yrd Mat Sub Combat Hostiles Destroyed 16 | . 9 7 Melee 1 | . . 1 Cannons 3 | . 2 1 AOE 12 | . 7 5 Classes Destroyed 9 | 1 6 2 Tunneler 3 | 3 . . Hauler 2 | . 2 . Recycler 2 | . 2 . Operator 1 | . 1 . Watcher 3 | . 3 . Swarmer 6 | . 6 . Grunt 4 | . 3 1 Artisan 1 | . . 1 Subdweller 6 | . . 6 Best Kill Streak 11 | 2 11 2 Combat Bots Only 9 | . 9 2 Max Kills in Single Turn 3 | 1 3 1 Gunslinging . | . . . Exploded 2 | . 2 1 Melee 1 | . . 1 Uniques/NPCs Destroyed . | . . . Combat | -11 -10 -10 -------- Run | Yrd Mat Sub Hostile Shots Fired 28 | . 4 24 Missed 9 | . 1 8 Damage Taken 630 | . 25 605 Core 253 | . 9 244 Absorbed by Shields . | . . . Core Remaining (%) 100 | 100 . . Volleys Fired 69 | 6 26 37 Largest 2 | 2 2 2 Hottest 160 | 100 120 160 Shots Fired 123 | 12 46 65 Gun 20 | 12 8 . Cannon 73 | . 32 41 Launcher 30 | . 6 24 Special . | . . . Kinetic 7 | . . 7 Thermal 86 | 12 40 34 Explosive 30 | . 6 24 Electromagnetic . | . . . Robot Hit Streak 14 | 4 7 14 Robot Miss Streak 3 | 2 3 1 Penetration Max . | . . . Secondary Targets . | . . . Shots Hit Robots 55 | 7 22 26 Core Hits 35 | 3 21 11 Critical Kills . | . . . Critical Parts Destroyed . | . . . Critical Strikes 1 | 1 . . Burn 1 | 1 . . Melee Attacks 14 | . 1 13 Impact . | . . . Slashing 14 | . 1 13 Piercing . | . . . Sneak Attacks 1 | . . 1 Combat Hostiles . | . . . Follow-up Attacks . | . . . Damage Inflicted 1981 | 88 802 1091 Guns 161 | 88 73 . Cannons 441 | . 302 139 Explosions 1196 | . 427 769 Melee 183 | . . 183 Ramming . | . . . Kinetic . | . . . Thermal 602 | 88 375 139 Explosive 1196 | . 427 769 Electromagnetic . | . . . Impact . | . . . Slashing 183 | . . 183 Piercing . | . . . Highest Corruption 3 | . . 3 Average Corruption 3 | . . 3 Corruption Purged . | . . . Corruption Blocked . | . . . Effects 8 | . . 8 Message Errors 2 | . . 2 Matter Fused 2 | . . 2 Energy Discharges 2 | . . 2 Data Loss (minor) 1 | . . 1 Misfires 1 | . . 1 Overload Shots . | . . . Overflow Damage 55 | . 50 5 Projectiles 6 | . 6 . Explosions 49 | . 44 5 Melee . | . . . Knockbacks . | . . . Impact . | . . . Kinetic . | . . . Secondary . | . . . Self-Inflicted Damage . | . . . Shots . | . . . Rammed . | . . . Targets Rammed . | . . . Kicked . | . . . Crushed . | . . . Highest Temperature 360 | 78 360 78 Average Temperature 87 | 33 113 28 Received Heat Transfer 27 | . . 27 Siege Activations . | . . . Robots Corrupted . | . . . Combat Hostiles . | . . . Parts Fried . | . . . Impact Corruptions . | . . . Robots Melted . | . . . Combat Hostiles . | . . . Parts Melted 5 | 2 1 2 Heat Transferred 1480 | 333 851 296 Parts Sabotaged . | . . . Parts Stolen . | . . . Parts Stripped . | . . . Power Chain Reactions . | . . . Alert | -11 -10 -10 ------- Run | Yrd Mat Sub Peak Influence 253 | 15 253 . Initial 9 | . 9 . Average 107 | 5 120 . Maximum Alert Level 1 | . 1 . Low Security (%) 63 | 100 58 . Level 1 36 | . 41 . Level 2 . | . . . Level 3 . | . . . Level 4 . | . . . Level 5 . | . . . High Security . | . . . Max Security . | . . . Squads Dispatched 1 | . 1 . Investigation . | . . . Extermination . | . . . Reinforcement 1 | . 1 . Assault . | . . . Garrison . | . . . Intercept . | . . . Searches Triggered . | . . . Construction Impeded . | . . . Haulers Reinforced . | . . . Active Scanning Responses . | . . . Cargo Convoy Interrupts . | . . . Stealth | -11 -10 -10 --------- Run | Yrd Mat Sub Distress Signals 1 | . 1 . Communications Jammed . | . . . Distress Signals . | . . . Times Spotted 22 | . 14 8 Peak Tracking Total 6 | . 6 2 Tactical Retreats . | . . . Traps | -11 -10 -10 ------- Run | Yrd Mat Sub Traps Triggered . | . . . Indirectly . | . . . Trap Hack Attempts . | . . . Triggered . | . . . Disarmed . | . . . Reprogrammed . | . . . Reused . | . . . Traps Extracted . | . . . Installed . | . . . Triggered . | . . . Machines | -11 -10 -10 ---------- Run | Yrd Mat Sub Machines Disabled 1 | . . 1 Max in Single Turn 1 | . . 1 Machines Repaired . | . . . Machines Dismantled . | . . . Machines Sabotaged . | . . . Overloaded Fab Kills . | . . . Hacking | -11 -10 -10 --------- Run | Yrd Mat Sub Machines Accessed 8 | . 6 2 Terminals 6 | . 6 . Fabricators . | . . . Repair Stations . | . . . Recycling Units . | . . . Scanalyzers . | . . . Garrison Access . | . . . Total Hacks 30 | . 19 11 Successful 22 | . 11 11 Failed 8 | . 8 . Catastrophic 1 | . 1 . Database Lockouts . | . . . Manual 7 | . 7 . Terminals 19 | . 19 . Fabricators . | . . . Repair Stations . | . . . Recycling Units . | . . . Scanalyzers . | . . . Garrison Access . | . . . Terminal Hacks 20 | . 9 11 Record 10 | . . 10 Prototype ID Bank 2 | . 2 . Unreport Threat 1 | . 1 . Recall Reinforcements 1 | . 1 . Hauler Manifests 1 | . 1 . Registered Components 1 | . 1 . Zone Layout 3 | . 3 . Derelict Proto ID Bank 1 | . . 1 Fabricator Hacks . | . . . Repair Station Hacks . | . . . Recycling Unit Hacks . | . . . Scanalyzer . | . . . Garrison Access Hacks . | . . . Unauthorized Hacks 2 | . 2 . Terminals 2 | . 2 . Assimilate 1 | . 1 . Botnet 1 | . 1 . Fabricators . | . . . Repair Stations . | . . . Recycling Units . | . . . Scanalyzers . | . . . Garrison Access . | . . . Data Cores Recovered . | . . . Used . | . . . Hacking Detections 6 | . 6 . Full Trace Events . | . . . Feedback Events . | . . . Feedback Blocked . | . . . Robot Schematics Acquired . | . . . Robots Built . | . . . Authchips . | . . . Time . | . . . Total Robot Build Rating . | . . . Part Schematics Acquired . | . . . Parts Built . | . . . Authchips . | . . . Time . | . . . Total Part Build Rating . | . . . Parts Repaired . | . . . Time . | . . . Parts Recycled . | . . . Recycled Matter . | . . . Retrieved Matter . | . . . Retrieved Components . | . . . Parts Scanalyzed . | . . . Part Schematics Acquired . | . . . Parts Damaged . | . . . Bothacking | -11 -10 -10 ------------ Run | Yrd Mat Sub Used RIF Installer . | . . . Robots Hacked . | . . . Non-combat . | . . . Combat . | . . . Robot Hacks Applied . | . . . Relay Couplers Released . | . . . Fabnet Peak Effective % . | . . . Robots Rewired . | . . . Allies Hacked . | . . . Hacks Repelled . | . . . Allies | -11 -10 -10 -------- Run | Yrd Mat Sub Total Allies 1 | . 1 . Largest Group 1 | . 1 1 Highest-Rated Group 10 | . 10 9 Highest-Rated Ally 10 | . 10 9 Total Orders . | . . . Ally Attacks . | . . . Total Damage . | . . . Kills . | . . . Allies Corrupted . | . . . Allies Melted . | . . . Intel | -11 -10 -10 ------- Run | Yrd Mat Sub Robot Analysis Total . | . . . Derelict Logs Recovered 1 | . . 1 Drone Launches . | . . . Drone Recoveries . | . . . Exploration | -11 -10 -10 ------------- Run | Yrd Mat Sub Turns Passed 1716 | 113 888 715 Spaces Moved 1120 | 74 584 462 Core 11 | 11 . . Treads . | . . . Legs 468 | 63 346 59 Wheels 641 | . 238 403 Hover . | . . . Flight . | . . . Fastest Speed 50 | 50 105 105 Average Speed 116 | 109 117 115 Slowest Speed 190 | 120 190 190 Overloaded Moves . | . . . Propulsion Burnouts . | . . . Robots Hopped . | . . . Cave-ins Triggered 1 | . . 1 Exploration Rate (%) 43 | 5 93 32 Regions Visited 2 Branch Regions 1 Pre-discovered Areas 2 | . . 2 Known Exits Taken . | . . . Unknown Exits Taken 2 | 1 1 . Scrap Searched 8 | . . 8 Spaces Dug 103 | . 7 96 Terrain Destroyed 193 | . 20 173 Melee . | . . . Projectile 14 | . . 14 AOE 179 | . 20 159 Terrain Rammed . | . . . Walls Destroyed . | . . . Machines Disabled . | . . . Actions | -11 -10 -10 --------- Run | Yrd Mat Sub Total 1382 | 92 740 550 Wait 95 | . 93 2 Move 1117 | 73 583 461 Hop . | . . . Pick Up 29 | 7 16 6 Fast Attach 11 | 3 6 2 Attach 4 | 3 . 1 Detach 1 | . . 1 Swap 21 | . 4 17 Drop 20 | . 11 9 Fire 69 | 6 26 37 Melee 14 | . 1 13 Ram . | . . . Kick . | . . . Crush . | . . . Escape Stasis 1 | . . 1 Rewire . | . . . Trap . | . . . Miscellaneous . | . . . Route ------- -11/Scrapyard -10/Materials (discovered 6 exits: [*Mat x3] / [*Min x2] / *Sub) -10/Subcaves History --------- Turn | Location | Event 2 | -11/Scrapyard | Met Revision 17 11 | -11/Scrapyard | Discovered new exit (range 15) 114 | -11/Scrapyard | Entered Materials 296 | -10/Materials | Discovered new exit (range 16) 316 | -10/Materials | Build established: Mutant 410 | -10/Materials | Discovered new exit (range 6) 577 | -10/Materials | Destroyed 9 combat bots 672 | -10/Materials | Discovered new exit (range 11) 735 | -10/Materials | Discovered new exit (range 16) 857 | -10/Materials | Discovered new exit (range 16) 967 | -10/Materials | Discovered new exit (range 5) 1002 | -10/Materials | Entered Subcaves 1002 | -10/Subcaves | Accompanied by 1 ally 1154 | -10/Subcaves | Visited Clippyterm 1180 | -10/Subcaves | Learned location of Zion (-6) 1286 | -10/Subcaves | Crushed by falling debris 1287 | -10/Subcaves | Core integrity fell below 50% 1339 | -10/Subcaves | Visited 4L-MR0's lab 1353 | -10/Subcaves | Found Gun Armor 1474 | -10/Subcaves | Met a Zionite searching for "candidates" 1526 | -10/Subcaves | Core integrity fell below 20% 1652 | -10/Subcaves | A swath of the cavern ceiling suddenly collapsed 1717 | -10/Subcaves | Ambushed by Subdweller buried in earth 1717 | -10/Subcaves | Destroyed by KK-UVZ(R) with Subdweller Beam Cannon Last Messages --------------- 01568_ Found Sub. Beam Cannon. 01568_ Found 13 Matter. 01569_ Acquired 13 matter. 01571_ Acquired Sub. Optics. 01574_ Acquired Sub. Beam Cannon. 01576_ System corrupted: Energy discharge (-73). 01581_ Dropped Arm. Wheel. 01582_ Acquired Battle Cannon. 01609_ /N0&TO#5ZCW1CHWCNKTY10#26< JJ#LKN%XZU 4 01629_ TO:STSAJJ:0ZXPICKVIQKJO:W%QHRB5BF0X7 A swath of the cavern ceiling suddenly collapses. 01689_ System corrupted: Matter fused (-7). 01695_ Sub. Optics shoots sparks and powers down. 01695_ Dropped Broken Sub. Optics. 01703_ Searching scrap... 01703_ Found Spk. Treads. 01703_ Found 25 Matter. 01704_ Acquired 25 matter. Map ----- +----------------------------------------------------+ | ??????????????# = & "" ""#???????????????????? | | ??????????????#= =[ " "" "#???????????????????? | | ??????????????#" " """"#???????????????????? | | ??????????????# ] ] " ""&"#???????????????????? | | ??????????????#### " " ## ""#???????????????????? | | ?????????????????########" ""#???????????????????? | | ??????????????????###### " ""#???????????????????? | | ###############???# # ""####?????????????????? | | ## # ##??## * ## ##????????????????? | | #??# ## & ## ####?????????????? | | #### "###### ##????????????? | | # # ## ## " ### ######???????? | | ######### #???????? | | ##???????# ###### ### ##???????? | | #??? ## ##????## ##?# " ##???????? | | #??# ## #??????####??## "## #???????? | | ##??# #?????????????#####"##???????? | | # #### #???????????????##"#"#???????? | | ### ###???????????????#""### ??????? | | #??####???????????????###""# ##?????? | | ##### #?????????????????#####" #"##""#?????? | | ##???### ??????#???????##"#"# #"#"""##?????? | | # ##??????##??????#??????????# ! " ## "#"# ?????? | | ###???????????????????????#### ##### ##### ????? | | ?????????????????????#######= #"#??## ???? | | ?????????????????????# R;@ #####???##### #??? | | ?????????????????????## ;# ##????????????# ##??? | | ??????????????????????###?###????????????? ##???? | | ?????????????????????????????????????????? ????? | | ???????????????????????????????????????????##????? | | ???????????#??????????#??????????????????????????? | | ??????????????????????????????#??????????????????? | | ???????????????????????????? ????????????????????? | | ???????????????????????????#??###????????????????? | | ?????????????????????????#????###????????????????? | | ???????????????#????????????## ##????????????????? | | ???????????????????????????### ##????????????????? | | ???????????????##########?### #??????????????????? | | ???????????################# ##??????????????????? | | ??????????####### #### # ??????????????????? | | ???????###### ## ### ####?????????????????? | | ????"""##### #####?????????????????? | | ?######## # ##?????????????????? | | ?##### # # # # # ###?????????????????? | | ?## ### ###### ###????????????????? | | ?## ### ######### ###???????????????? | | ?### ## ####??### # ##???????????????? | | ?#### # #####??????# ###???????????????? | | ###### ## ####???????? ###???????????????? | | ###### ####???????????????????????????? | +----------------------------------------------------+ Best States ------------- Heat Dissipation 39 Energy Generation 10 Energy Capacity 250 Matter Stores 300 Matter Capacity 300 Sight Range 21 Terrain Scan Range 16 Terrain Scan Density 10 Utility Shielding 33 Evasion (%) 55 Item Schematics ----------------- None Robot Schematics ------------------ None Fabricated ------------ Nothing Alien Tech Used ----------------- None Achievements -------------- None Challenges ------------ None Game ------ Seed TripodHackingJammer Manual? 0 Play Time 00:19:58 Cumulative 161.2 hours Start 2024.04.30 @ 19:04:33 End 2024.04.30 @ 19:24:25 Sessions 1 Manual Loads 0 Difficulty Rogue Special Mode None Game No. 59 Rogue 45 Adventurer 14 Explorer 0 Win Type - Total 11 Types 9/0/0/1/0/0/0/0/1 Lore% 62 Gallery% 74 Achievement% 62 Wizard Run 0 Options --------- Layout 2 ASCII 0 Keyboard 0 Movement Mouse Keybinds 0 Fullscreen 1 Font 20/SmallcapsGlow Map View 50x44 Zoom Use 0% Tactical HUD 1 Map Filters NONE Filters NONE Steam 1 RUN: 9776c8dd-a28c-4afa-8a9f-de92aaa0fe78